Cogmind - Beta 9.2 @@@ ROGUE MODE // 2019.12.14 @ 23:30:32 Player: Fleshy Vegetable Bird Result: Destroyed by S-43 Plague with Heavy Machine Gun Performance ------------- Evolutions (9) 4500 Regions Visited (29) 5800 Robots Destroyed (298) 1490 Value Destroyed (14111) 14111 Prototype IDs (240) 4800 Alien Tech Used (1) 200 Bonus (10112) 10112 TOTAL SCORE: 41013 Bonus ------- High Alert Combat Kills 3080 Follower Combat Kills 1075 Aligned with FarCom 300 Met Data Miner 300 Used Data Conduit 3000 Met Zhirov 300 Met Warlord at Base 500 MAIN.C Attacked Warlord 500 Warlord Defense Kill 300 Pursued by Intercept 1500 Friendly Fire -743 Cogmind --------- Core Integrity 0/1600 Matter 300/300 Energy 99/100 System Corruption 4% Temperature Cool (9) Movement Core (50) Location -1/Command Parts ------- > --- POWER (2) -------- (None) > --- PROPULSION (6) --- (None) > --- UTILITY (13) ----- Improved Signal Interpreter Advanced Terrain Scan Processor Experimental Targeting Computer Experimental Target Analyzer Advanced System Shield > --- WEAPON (4) ------- (None) > --- INVENTORY (4) ---- Advanced Coolant Injector Enhanced Optical Array Improved Stasis Canceller Experimental Thermal Shield Peak State ------------ > --- POWER ------------ Vortex Chain Reactor > --- PROPULSION ------- Biometal Heavy Treads Biometal Heavy Treads Biometal Heavy Treads > --- UTILITY ---------- Large Storage Unit Large Storage Unit Large Storage Unit High-capacity Storage Unit Improved Signal Interpreter Advanced Terrain Scan Processor Experimental Targeting Computer Experimental Targeting Computer Experimental Target Analyzer Improved Stasis Canceller Experimental Weapon Shielding Experimental Thermal Shield Advanced System Shield > --- WEAPON ----------- XL Autogun Array > --- INVENTORY -------- Fusion Reactor Particle Reactor Biometal Heavy Treads Biometal Heavy Treads Biometal Heavy Treads Biometal Heavy Treads Experimental Heat Sink Experimental Heat Sink Compact Matter Pod Enhanced Optical Array Long-range Tractor Beam Heavy Tesla Rifle Heavy Laser Heavy Machine Gun Phasing Sabre [Rating: 184] Favorites ----------- Power Light Antimatter Reactor Engine Light Ion Engine Power Core Light Nuclear Core Reactor Light Antimatter Reactor Propulsion Flexi-carbon Leg Treads Improved Heavy Treads Leg Flexi-carbon Leg Wheel Armored Huge Wheel Utility High-capacity Storage Unit Device Long-range Sensor Array Storage High-capacity Storage Unit Processor Improved Signal Interpreter Hackware Hacking Suite Protection Light Armor Plating Weapon Heavy Mace Energy Gun Improved EM Shotgun Energy Cannon Heavy Plasma Cannon Ballistic Gun KE Penetrator Ballistic Cannon Heavy Gauss Cannon Launcher Grenade Launcher Impact Weapon Heavy Mace Slashing Weapon Katana Build | -11 -10 -10 -9 -9 -9 -8 -8 -7 -7 -7 -6 -6 -6 -6 -5 -5 -5 -5 -5 -4 -4 -4 -4 -4 -3 -3 -2 -1 -1 ------- Run | Scr Mat Min Mat Min Exi Min Mat Fac Low Low Fac Low Low Dat Pro Fac Upp Upp War Pro Fac Upp Upp Zhi Pro Res Res Acc Com Slots Evolved 18 | . . . 2 . . . 2 2 . . 2 . . . . 2 . . . . 2 . . . . 2 2 2 . Power 1 | . . . . . . . . . . . . . . . . . . . . . . . . . . 1 . . . Propulsion 4 | . . . 1 . . . . 1 . . . . . . . . . . . . . . . . . . 1 1 . Utility 11 | . . . 1 . . . 1 1 . . 1 . . . . 2 . . . . 2 . . . . 1 1 1 . Weapon 2 | . . . . . . . 1 . . . 1 . . . . . . . . . . . . . . . . . . Parts Attached 253 | 7 2 2 14 2 5 . 10 19 6 2 4 1 . 17 14 5 1 13 5 5 5 13 10 2 2 14 23 14 36 Power 21 | 1 . . 2 . . . 1 2 1 . . . . 1 1 . . 1 . . . 1 . 1 . 1 3 . 5 Engine 6 | 1 . . 2 . . . . . 1 . . . . 1 . . . . . . . . . 1 . . . . . Core 4 | . . . . . . . 1 2 . . . . . . . . . . . . . . . . . . . . 1 Reactor 11 | . . . . . . . . . . . . . . . 1 . . 1 . . . 1 . . . 1 3 . 4 Propulsion 50 | 2 . 2 3 1 1 . 3 3 . 1 . . . 2 5 . 1 1 3 2 2 . 2 . . 1 4 3 8 Treads 20 | . . . . . . . . . . . . . . . . . . . . . 2 . 2 . . 1 4 3 8 Leg 11 | . . . . . . . . . . . . . . . 4 . 1 1 3 2 . . . . . . . . . Wheel 19 | 2 . 2 3 1 1 . 3 3 . 1 . . . 2 1 . . . . . . . . . . . . . . Hover . | . . . . . . . . . . . . . . . . . . . . . . . . . . . . . . Flight . | . . . . . . . . . . . . . . . . . . . . . . . . . . . . . . Utility 85 | 2 1 . 1 . 3 . 2 3 4 . 2 1 . 5 6 5 . 6 . 2 3 6 4 1 2 7 6 3 10 Device 39 | . . . . . . . . . 1 . 1 . . 3 4 2 . 3 . 2 1 6 4 1 2 3 1 1 4 Storage 17 | 2 1 . 1 . 2 . 1 1 2 . . 1 . . 1 1 . 1 . . . . . . . . 2 . 1 Processor 10 | . . . . . . . . . 1 . . . . 1 . 1 . 1 . . 1 . . . . . 3 . 2 Hackware 8 | . . . . . . . . 2 . . . . . . . 1 . . . . 1 . . . . 3 . 1 . Protection 11 | . . . . . 1 . 1 . . . 1 . . 1 1 . . 1 . . . . . . . 1 . 1 3 Artifact . | . . . . . . . . . . . . . . . . . . . . . . . . . . . . . . Weapon 97 | 2 1 . 8 1 1 . 4 11 1 1 2 . . 9 2 . . 5 2 1 . 6 4 . . 5 10 8 13 Energy Gun 23 | 1 . . 2 1 1 . 2 4 . 1 . . . 2 . . . 1 . . . . . . . . 2 2 4 Energy Cannon 21 | . . . 1 . . . . 1 . . . . . 1 2 . . 3 1 1 . 4 2 . . 1 2 2 . Ballistic Gun 28 | 1 . . 2 . . . 2 1 1 . 2 . . 1 . . . 1 1 . . 1 2 . . 1 2 3 7 Ballistic Cannon 7 | . . . . . . . . 2 . . . . . . . . . . . . . 1 . . . 2 2 . . Launcher 6 | . 1 . 3 . . . . 1 . . . . . 1 . . . . . . . . . . . . . . . Special Weapon . | . . . . . . . . . . . . . . . . . . . . . . . . . . . . . . Impact Weapon 1 | . . . . . . . . . . . . . . 1 . . . . . . . . . . . . . . . Slashing Weapon 11 | . . . . . . . . 2 . . . . . 3 . . . . . . . . . . . 1 2 1 2 Piercing Weapon . | . . . . . . . . . . . . . . . . . . . . . . . . . . . . . . Special Melee Weapon . | . . . . . . . . . . . . . . . . . . . . . . . . . . . . . . Unidentified Prototypes 9 | . . . 3 . . . . 1 . . . . . . . . . . 2 . . . . 1 . . 1 . 1 Parts Lost 127 | . . . 6 3 . . 6 9 . 1 . . . 14 4 3 1 7 . 1 . 7 3 . 1 4 13 9 35 Power 15 | . . . 2 . . . 1 1 . . . . . 1 . . . 1 . . . 1 . . . . 2 . 6 Propulsion 26 | . . . 3 1 . . 1 2 . . . . . 2 3 1 . 1 . . . . 2 . . 1 1 2 6 Utility 30 | . . . . . . . 1 . . . . . . 4 . . 1 2 . 1 . 1 . . . 2 4 3 11 Weapon 56 | . . . 1 2 . . 3 6 . 1 . . . 7 1 2 . 3 . . . 5 1 . 1 1 6 4 12 Highest Loss Streak 14 | . . . 3 2 . . 6 5 . 1 . . . 14 4 3 1 7 . 1 . 3 1 . 1 1 11 3 13 Average Slot Usage (%) 88 | . 100 100 84 93 90 100 85 81 83 82 78 86 86 75 87 99 88 90 100 99 86 81 85 89 85 86 86 79 76 Engine 3 | . 14 14 9 11 11 11 6 . 6 7 6 6 6 5 1 . . . . . . . . 1 5 4 . . . Reactor 2 | . . . . . . . . . . . . . . . 4 5 5 4 5 5 5 4 5 3 . 2 5 4 3 Treads 3 | . . . . . . . . . . . . . . . . . . . . . 4 10 9 10 10 9 13 15 11 Leg 4 | . . . . . . . . . . . . . . . 1 23 23 22 23 23 11 . . . . . . . . Wheel 9 | . 28 28 24 33 32 33 24 15 15 14 13 13 13 11 13 . . . . . . . . . . . . . . Device 6 | . . . . . . . . . 7 7 5 6 6 2 5 9 11 8 5 7 8 12 14 15 14 13 10 4 5 Storage 21 | . 28 28 28 33 22 22 19 23 23 23 20 20 20 20 20 17 17 19 23 23 21 21 21 21 21 19 16 16 15 Processor 9 | . . . . . . . . . 7 7 6 6 6 9 13 15 11 11 11 11 15 15 15 15 15 12 15 20 20 Hackware 2 | . . . . . . . . 13 . . . . . . . 2 5 5 5 2 1 2 . . . 5 8 7 6 Protection 1 | . . . . . 10 11 9 . . . 1 6 6 3 . . . . . . . . . . . . . . 2 Energy Gun 3 | . 3 . 9 11 13 22 18 4 15 13 13 13 13 3 . . . . . . . . . . . . 2 2 . Energy Cannon 3 | . . . 1 . . . . 3 . . . . . . . 10 5 7 11 13 15 5 2 10 6 3 1 1 . Ballistic Gun 6 | . 14 14 5 . . . 6 7 6 7 10 13 13 6 . . . . 4 5 3 4 11 10 10 6 5 6 7 Launcher 2 | . 10 14 5 3 . . . 1 . . . . . . 5 . . . . . . . . . . . . . . Impact Weapon 1 | . . . . . . . . . . . . . . 3 6 5 5 5 5 2 . . . . . . . . . Slashing Weapon 1 | . . . . . . . . 2 . . . . . 7 12 4 . . . . . . . . . . . 1 1 Naked Turns . | . . . . . . . . . . . . . . . . . . . . . . . . . . . . . . Heaviest Build 170 | 15 28 28 43 43 65 65 99 101 102 103 110 110 110 115 123 118 107 126 139 134 134 129 131 131 128 157 170 163 159 Greatest Support 225 | 20 20 20 30 32 34 34 40 56 56 56 56 56 56 56 70 70 83 88 98 98 150 150 150 150 150 150 170 211 225 Greatest Overweight (x) 43 | . 1 9 4 1 1 1 5 2 1 1 1 1 1 2 12 1 1 1 1 1 43 . 1 . . 1 1 . 22 Average Overweight (x) 1 | . . 5 1 1 1 1 1 1 1 1 1 1 1 1 1 1 1 1 1 1 . . . . . . . . . Largest Inventory Capacity 32 | 8 12 12 16 16 20 18 26 26 28 26 26 26 26 26 26 26 26 26 26 26 26 26 26 26 26 26 32 32 32 Average Capacity 24 | 7 11 12 14 16 16 18 19 26 26 26 26 26 26 26 26 26 26 26 26 26 26 26 26 26 26 26 29 32 30 Most Carried 32 | 8 12 12 16 15 18 18 24 26 26 26 26 26 26 26 26 26 26 25 26 26 26 26 26 26 26 26 32 32 31 Average Carried 22 | 3 9 10 13 14 15 17 18 23 24 25 24 25 26 20 23 24 25 22 23 25 24 23 25 25 25 24 25 30 22 Final Capacity 32 | 8 12 12 16 16 18 18 26 26 26 26 26 26 26 26 26 26 26 26 26 26 26 26 26 26 26 26 32 32 4 Final Carried 32 | 6 12 10 16 15 18 18 24 26 26 25 26 26 26 21 21 26 26 19 26 25 26 26 26 26 25 23 32 26 4 Class Distribution -------------------- 29% | Hauler-Mutant 18% | Mutant 13% | Hauler-Skirmisher 10% | Scavenger-Assassin 5% | Hauler-Tank 5% | Scavenger-Mutant 5% | Scavenger-Skirmisher 3% | Hauler-Gunner Dominant Class ---------------- Mutant | -10/Materials Mutant | -10/Mines Mutant | -9/Materials Mutant | -9/Mines Mutant | -9/Exiles Mutant | -8/Mines Skirmisher | -8/Materials Hauler-Mutant | -7/Factory Hauler-Mutant | -7/Lower Caves Hauler-Mutant | -7/Lower Caves Hauler-Skirmisher | -6/Factory Hauler-Skirmisher | -6/Lower Caves Hauler-Skirmisher | -6/Lower Caves Hauler-Mutant | -6/Data Miner Hauler-Mutant | -5/Proximity Caves Scavenger-Assassin | -5/Factory Scavenger-Assassin | -5/Upper Caves Scavenger-Assassin | -5/Upper Caves Scavenger-Mutant | -5/Warlord Scavenger-Skirmisher | -4/Proximity Caves Scavenger-Skirmisher | -4/Factory Hauler-Mutant | -4/Upper Caves Hauler-Mutant | -4/Upper Caves Hauler-Mutant | -4/Zhirov Derelict-Skirmisher | -3/Proximity Caves Hauler-Tank | -3/Research Hauler-Tank | -2/Research Hauler-Gunner | -1/Access Hauler-Gunner | -1/Command Resources | -11 -10 -10 -9 -9 -9 -8 -8 -7 -7 -7 -6 -6 -6 -6 -5 -5 -5 -5 -5 -4 -4 -4 -4 -4 -3 -3 -2 -1 -1 ----------- Run | Scr Mat Min Mat Min Exi Min Mat Fac Low Low Fac Low Low Dat Pro Fac Upp Upp War Pro Fac Upp Upp Zhi Pro Res Res Acc Com Matter Collected 8043 | 290 183 166 284 42 . 50 138 361 296 35 102 10 . 230 215 35 10 75 102 70 38 263 557 . 93 735 764 758 2141 Remotely 373 | . . . . . . . . . . . . . . . . . . . . . . . . . . . . . 373 Salvage Created 14252 | 210 287 222 833 154 . 246 316 785 40 231 192 . . 417 608 113 108 150 114 223 203 711 629 . 246 1029 753 949 4483 Parts 563 | 19 27 14 70 8 . 17 19 55 1 13 14 . . 20 21 2 . 7 8 9 5 12 18 . 16 35 25 42 86 Haulers Intercepted 7 | . 2 . 4 . . . . . . . . . . . . . . . . . . . . . . 1 . . . Recyclers Shooed 4 | . . . . . . . . 2 . . . . . . . . . . . . 1 . . . . . . 1 . Parts Field Recycled . | . . . . . . . . . . . . . . . . . . . . . . . . . . . . . . Retrieved Matter . | . . . . . . . . . . . . . . . . . . . . . . . . . . . . . . Parts Self-Destructed 165 | . . . . . . . . . 5 9 . . . . 6 . 1 5 97 7 . 11 11 . 13 . . . . Prevented 44 | . . . . . . . . . . 4 . . . . 12 . 2 3 10 . . 1 9 . 3 . . . . Kills | -11 -10 -10 -9 -9 -9 -8 -8 -7 -7 -7 -6 -6 -6 -6 -5 -5 -5 -5 -5 -4 -4 -4 -4 -4 -3 -3 -2 -1 -1 ------- Run | Scr Mat Min Mat Min Exi Min Mat Fac Low Low Fac Low Low Dat Pro Fac Upp Upp War Pro Fac Upp Upp Zhi Pro Res Res Acc Com Combat Hostiles Destroyed 232 | . 9 9 17 3 . 2 6 15 . 7 2 . . 4 12 . . 5 2 3 1 18 14 . 9 13 9 14 58 Melee 4 | . . . . . . . . . . . . . . 3 1 . . . . . . . . . . . . . . Guns 125 | . 3 2 6 3 . 2 5 6 . 7 2 . . 1 . . . 1 . . . 3 7 . 2 3 4 11 57 Cannons 52 | . . . 1 . . . . 2 . . . . . . 3 . . 2 2 3 1 15 7 . 2 8 4 2 . AOE 44 | . 6 7 10 . . . 1 7 . . . . . . 7 . . 1 . . . . . . 5 . . . . Classes Destroyed 20 | 2 5 . 4 . . . 1 1 1 . . . . . . 1 . . . . . 1 . . . . . 1 3 Worker 16 | . 2 . 3 . . . . 8 . . . . . . . . . . . . 1 . . . . 1 . . 1 Builder 2 | . . . 2 . . . . . . . . . . . . . . . . . . . . . . . . . . Tunneler 13 | 5 . 3 1 . . 3 . 1 . . . . . . . . . . . . . . . . . . . . . Hauler 7 | . 2 . 4 . . . . . . . . . . . . . . . . . . . . . . 1 . . . Recycler 7 | 1 . . 2 . . 1 . 2 . . . . . . . . . . . . 1 . . . . . . . . Carrier 1 | . . . . . . . . . . . . . . . . 1 . . . . . . . . . . . . . Minesweeper 3 | . . . . . . . . . 1 1 . . . . . . . . . . . . 1 . . . . . . Operator 5 | . . . 1 . . . 3 1 . . . . . . . . . . . . . . . . . . . . . Watcher 11 | . 1 . 2 . . . 2 1 . . 2 . . . . . . . . . . . . . . 2 . . 1 Swarmer 83 | . 6 6 7 . . . 3 4 . 7 . . . . 5 . . 4 . . . 5 10 . 9 . . 4 13 Grunt 78 | . 3 3 6 3 . 2 . 5 . . . . . . 7 . . 1 . 3 . 5 . . . 4 2 4 30 Brawler 3 | . . . . . . . . . . . . . . . . . . . . . . 1 . . . . . . 2 Duelist 4 | . . . 2 . . . . . . . . . . . . . . . . . . 2 . . . . . . . Sentry 19 | . . . 2 . . . 2 2 . . 2 . . . . . . . . . 1 3 1 . . 3 3 . . Hunter 12 | . . . . . . . 1 2 . . . . . . . . . . . . . 2 2 . . . 1 2 2 Programmer 13 | . . . . . . . . 2 . . . . . . . . . . 2 . . . 1 . . 3 . 3 2 Behemoth 4 | . . . . . . . . . . . . . . . . . . . . . . . . . . . . 1 3 Enhanced Grunt 4 | . . . . . . . . . . . . . . 4 . . . . . . . . . . . . . . . Tracker 3 | . . . . . . . . . . . . . . . . . . . . . . . . . . 1 2 . . Combat Programmer 3 | . . . . . . . . . . . . . . . . . . . . . . . . . . 2 1 . . Striker 1 | . . . . . . . . . . . . . . . . . . . . . . . . . . . . . 1 Executioner 3 | . . . . . . . . . . . . . . . . . . . . . . . . . . . . . 3 Alpha 7 2 | . . . . . . . . . . . . . . . . . . . . . . . . . . . . . 2 Butcher 1 | . . . . . . . . . . . . . . . . . . . . . . . . . . . . . 1 Best Kill Streak 23 | 4 5 4 17 3 . 2 4 13 1 4 2 . . 1 7 1 . 3 2 3 1 10 6 . 5 3 3 5 23 Combat Bots Only 23 | . 3 3 10 3 . 2 4 9 . 4 1 . . 1 7 . . 3 2 3 1 10 6 . 5 3 3 5 23 Max Kills in Single Turn 5 | 1 3 3 5 1 . 1 1 3 1 1 1 . . 1 3 1 . 1 1 1 1 2 2 . 3 1 1 2 2 Gunslinging 1 | . . . . . . . . . . . . . . . . . . . . . . . . . . . . 1 1 Exploded 3 | . 2 3 3 . . . 1 2 . . . . . . 3 . . 1 . . . . . . 3 . . . . Melee 1 | . . . . . . . . . . . . . . 1 1 . . . . . . . . . . . . . . Uniques/NPCs Destroyed . | . . . . . . . . . . . . . . . . . . . . . . . . . . . . . . Combat | -11 -10 -10 -9 -9 -9 -8 -8 -7 -7 -7 -6 -6 -6 -6 -5 -5 -5 -5 -5 -4 -4 -4 -4 -4 -3 -3 -2 -1 -1 -------- Run | Scr Mat Min Mat Min Exi Min Mat Fac Low Low Fac Low Low Dat Pro Fac Upp Upp War Pro Fac Upp Upp Zhi Pro Res Res Acc Com Damage Taken 31198 | . 154 85 772 163 . 67 1040 1446 19 433 68 . 44 1985 932 159 44 840 172 184 514 1219 1046 . 372 1889 3237 2575 11739 Core 3412 | . 26 41 235 10 . . 191 156 . 65 6 . 22 106 127 . . 145 . . 69 137 63 . 20 150 239 197 1407 Absorbed by Shields . | . . . . . . . . . . . . . . . . . . . . . . . . . . . . . . Reduced by Siege Mode 1776 | . . . . . . . . . . . . . . . . . . . . . . . 136 . 6 120 253 320 941 Core Remaining (%) 74 | 100 . 73 . . . 38 65 . . 68 . . . . 69 . . . . 85 . . . . 74 88 83 . . Volleys Fired 689 | 10 32 25 64 10 . 10 24 36 13 14 5 . . 15 25 . 4 14 21 5 7 46 35 . 6 54 42 42 130 Largest 4 | 2 2 2 2 2 . 2 3 3 3 3 4 . . 4 2 . 1 3 3 4 3 4 4 . 4 4 4 3 4 Hottest 380 | 70 70 50 101 101 . 90 140 131 146 146 166 . . 144 180 . 90 240 203 293 270 380 199 . 241 254 305 234 191 Shots Fired 1448 | 20 47 26 96 11 . 20 63 77 29 32 19 . . 42 31 . 4 23 49 20 21 94 116 . 19 145 115 114 215 Gun 971 | 20 39 19 77 11 . 20 63 55 29 32 19 . . 41 . . . 4 8 5 . 18 69 . 12 46 76 93 215 Cannon 425 | . . . 8 . . . . 15 . . . . . 1 12 . 4 19 41 15 21 76 47 . 7 99 39 21 . Launcher 52 | . 8 7 11 . . . . 7 . . . . . . 19 . . . . . . . . . . . . . . Special . | . . . . . . . . . . . . . . . . . . . . . . . . . . . . . . Kinetic 809 | 10 32 19 28 . . . 21 46 7 8 9 . . 37 . . . . 8 5 . 30 100 . 12 100 80 70 187 Thermal 340 | 10 7 . 40 4 . . 3 22 11 10 . . . 1 12 . 4 19 40 15 21 45 12 . 5 1 9 31 18 Explosive 33 | . 8 7 11 . . . . 7 . . . . . . . . . . . . . . . . . . . . . Electromagnetic 246 | . . . 17 7 . 20 39 2 11 14 10 . . 4 19 . . 4 . . . . 4 . 2 44 26 13 10 Entropic 20 | . . . . . . . . . . . . . . . . . . . 1 . . 19 . . . . . . . Robot Hit Streak 61 | 7 5 7 10 7 . 10 9 12 11 10 8 . . 8 6 . 2 5 7 7 6 14 27 . 12 37 36 53 61 Robot Miss Streak 6 | 1 3 4 3 2 . 4 3 3 1 3 2 . . 4 6 . 1 2 3 2 2 3 2 . 1 2 3 1 4 Penetration Max 2 | . . . . . . . . . . . . . . 1 . . . . . . . 1 1 . . 1 . 1 2 Secondary Targets 14 | . . . . . . 1 . 2 . 2 . . . . . . . . . . . . . . . . . 4 5 Max Gunslinging Chain 1 | . . . . . . 1 . 1 . 1 . . . . . . . . . . . . . . . . . 1 1 Shots Hit Robots 1067 | 13 28 15 60 9 . 13 32 58 23 22 11 . . 50 17 2 4 14 22 9 14 54 78 . 10 117 92 101 199 Core Hits 626 | 7 22 16 43 6 . 12 17 52 6 11 8 . . 16 25 2 1 7 8 6 7 23 32 . 13 37 31 43 175 Critical Hits 73 | . . . 1 . . . . . . . . . . 6 . . . . 1 1 . 2 3 . . 3 15 16 25 Critical Kills 18 | . . . . . . . . . . . . . . 1 . . . . . 1 . 1 . . . 1 3 3 8 Critical Parts Destroyed 44 | . . . 1 . . . . . . . . . . 4 . . . . 1 . . 1 3 . . 1 9 8 16 Melee Attacks 119 | . . . . . . . . 12 . . . . . 25 22 14 6 8 . . . . . . . 4 5 12 11 Impact 22 | . . . . . . . . . . . . . . 5 1 2 6 8 . . . . . . . . . . . Slashing 97 | . . . . . . . . 12 . . . . . 20 21 12 . . . . . . . . . 4 5 12 11 Piercing . | . . . . . . . . . . . . . . . . . . . . . . . . . . . . . . Sneak Attacks 6 | . . . . . . . . 2 . . . . . 1 . 2 . . . . . . . . . . . . 1 Combat Hostiles . | . . . . . . . . . . . . . . . . . . . . . . . . . . . . . . Follow-up Attacks 7 | . . . . . . . . . . . . . . 6 . 1 . . . . . . . . . . . . . Damage Inflicted 40650 | 147 683 546 1998 169 . 200 546 2626 336 423 306 . . 1329 1324 142 294 487 672 345 565 2932 1863 . 806 3895 2042 3786 12188 Guns 22707 | 147 253 155 730 169 . 200 432 701 336 423 160 . . 462 . . . 65 82 16 . 343 955 . 93 984 1030 3026 11945 Cannons 10779 | . . . 131 . . . . 253 . . . . . . 239 . 164 282 590 329 565 2589 892 . 144 2859 1012 730 . Explosions 5355 | . 424 391 1137 . . . 114 1382 . . 146 . . . 975 . . 111 . . . . 16 . 569 . . . 90 Melee 1704 | . . . . . . . . 275 . . . . . 867 110 140 130 29 . . . . . . . . . . 153 Ramming 105 | . 6 . . . . . . 15 . . . . . . . 2 . . . . . . . . . 52 . 30 . Kinetic 21585 | 72 228 155 225 . . . 22 492 103 110 23 . . 426 . . . . 82 16 . 536 1470 . 93 2751 1399 2300 11082 Thermal 7883 | 75 25 . 760 53 . . 151 919 87 101 . . . . 417 . 164 393 590 329 565 880 243 . 429 41 126 1008 527 Explosive 2542 | . 424 391 751 . . . . 886 . . . . . . . . . . . . . . . . . . . . 90 Electromagnetic 5315 | . . . 262 116 . 200 373 39 146 212 283 . . 36 797 . . 65 . . . . 150 . 284 1051 517 448 336 Impact 362 | . . . . . . . . . . . . . . 132 . 71 130 29 . . . . . . . . . . . Slashing 1342 | . . . . . . . . 275 . . . . . 735 110 69 . . . . . . . . . . . . 153 Piercing . | . . . . . . . . . . . . . . . . . . . . . . . . . . . . . . Entropic 1516 | . . . . . . . . . . . . . . . . . . . . . . 1516 . . . . . . . Highest Corruption 9 | . . . . . . . 1 4 4 4 1 1 1 1 1 . . . 1 . 2 2 2 2 2 6 9 . 4 Average Corruption 2 | . . . . . . . 1 3 4 4 1 1 1 1 1 . . . 1 . 2 2 2 2 2 5 8 . 2 Corruption Purged . | . . . . . . . . . . . . . . . . . . . . . . . . . . . . . . Effects 125 | . . . . . . . 2 8 18 6 1 . 2 1 10 . . . . . . 18 9 . 7 17 24 . 2 Message Errors 34 | . . . . . . . 1 1 2 1 1 . 2 . 5 . . . . . . 4 3 . 3 5 6 . . Matter Fused 13 | . . . . . . . . 1 5 . . . . . . . . . . . . . . . . 3 4 . . Heat Flow Errors 15 | . . . . . . . . 1 3 . . . . . . . . . . . . 7 1 . . 1 2 . . Energy Discharges 21 | . . . . . . . . 1 5 2 . . . 1 1 . . . . . . 5 . . 1 2 3 . . Data Loss (minor) 13 | . . . . . . . . 3 2 . . . . . 4 . . . . . . 1 2 . 1 . . . . Data Loss (major) 1 | . . . . . . . . . . . . . . . . . . . . . . . . . . . 1 . . Targeting Errors 23 | . . . . . . . . 1 1 3 . . . . . . . . . . . 1 3 . 1 5 7 . 1 Weapon Failures 5 | . . . . . . . 1 . . . . . . . . . . . . . . . . . 1 1 1 . 1 Overload Shots . | . . . . . . . . . . . . . . . . . . . . . . . . . . . . . . Overflow Damage 1337 | . 3 16 188 . . . 31 191 . . . . . 25 58 . 111 52 33 . 12 422 18 . 77 72 6 22 . Projectiles 656 | . . . 3 . . . . . . . . . . . 42 . 18 11 33 . 12 422 18 . 1 68 6 22 . Explosions 553 | . 3 16 185 . . . 31 191 . . . . . . 14 . . 37 . . . . . . 76 . . . . Melee 128 | . . . . . . . . . . . . . . 25 2 . 93 4 . . . . . . . 4 . . . Knockbacks 32 | . . . . . . . . . . . . . . 2 . . . . . . . 1 3 . . 19 7 . . Impact 3 | . . . . . . . . . . . . . . 2 . . . . . . . . . . . 1 . . . Kinetic 27 | . . . . . . . . . . . . . . . . . . . . . . 1 3 . . 16 7 . . Secondary 2 | . . . . . . . . . . . . . . . . . . . . . . . . . . 2 . . . Self-Inflicted Damage 919 | . 32 14 397 . . . 87 138 . . . . . . 24 . . 54 . . . . 9 . 89 . . . 75 Shots 20 | . 2 1 6 . . . 1 2 . . . . . . 3 . . 1 . . . . 1 . 2 . . . 1 Rammed 6 | . 1 . . . . . . 1 . . . . . . . . . . . . . . . . . 2 . 1 1 Targets Rammed 7 | . 1 . . . . . . 1 . . . . . . . 1 . . . . . . . . . 2 . 1 1 Kicked 1 | . . . . . . . . . . . . . . . . 1 . . . . . . . . . . . . . Crushed . | . . . . . . . . . . . . . . . . . . . . . . . . . . . . . . Highest Temperature 395 | . 36 10 196 50 . 147 259 348 242 212 156 . . 193 370 . 84 268 348 335 159 366 243 . 156 120 228 395 300 Average Temperature 91 | . 14 7 50 25 . 51 60 104 91 64 54 . . 61 210 . 52 147 131 153 67 134 58 . 67 14 64 146 95 Received Heat Transfer 2468 | . 15 24 135 72 . 36 81 306 . 20 24 . . 258 147 . . 18 57 39 84 42 27 . . 66 216 180 621 Effects 12 | . . . . . . . 1 1 . . . . . . 1 . . 2 2 . . 2 2 . . . . . 1 Shutdowns 1 | . . . . . . . . 1 . . . . . . . . . . . . . . . . . . . . . Energy Bleed 6 | . . . . . . . . . . . . . . . . . . 1 2 . . 2 . . . . . . 1 Interference 5 | . . . . . . . 1 . . . . . . . 1 . . 1 . . . . 2 . . . . . . Siege Activations 28 | . . . . . . . . . . . . . . . . . . . . . . . 5 . 2 5 5 4 7 Total Turns 485 | . . . . . . . . . . . . . . . . . . . . . . . 64 . 13 119 64 69 156 Longest Duration 56 | . . . . . . . . . . . . . . . . . . . . . . . 24 . 12 51 45 31 56 Robots Corrupted 6 | . . . . . . . . . . . . . . . 1 . . . . . . . . . . 3 . 1 1 Combat Hostiles 5 | . . . . . . . . . . . . . . . 1 . . . . . . . . . . 2 . 1 1 Parts Fried 29 | . . . . . . . 4 . . 2 2 . . . 7 . 1 1 . . . . . . . 9 1 2 . Impact Corruptions 7 | . . . . . . . . . . . . . . 1 . . 4 1 . . . . . . . 1 . . . Robots Melted . | . . . . . . . . . . . . . . . . . . . . . . . . . . . . . . Combat Hostiles . | . . . . . . . . . . . . . . . . . . . . . . . . . . . . . . Parts Melted 15 | . . . 1 . . . 1 2 . . . . . . . . . 1 1 1 3 1 1 . . . . . 3 Heat Transferred 8623 | 222 74 . 1164 111 . . 211 1057 185 222 . . . . 450 . 100 500 650 425 625 821 210 . 200 25 148 594 629 Parts Sabotaged . | . . . . . . . . . . . . . . . . . . . . . . . . . . . . . . Parts Stolen 1 | . . . . . . . . . 1 . . . . . . . . . . . . . . . . . . . . Parts Stripped . | . . . . . . . . . . . . . . . . . . . . . . . . . . . . . . Power Chain Reactions 6 | . . . 1 . . . 1 . . . . . . . 2 . . 1 . . . . . . 1 . . . . Missiles Intercepted . | . . . . . . . . . . . . . . . . . . . . . . . . . . . . . . Alert | -11 -10 -10 -9 -9 -9 -8 -8 -7 -7 -7 -6 -6 -6 -6 -5 -5 -5 -5 -5 -4 -4 -4 -4 -4 -3 -3 -2 -1 -1 ------- Run | Scr Mat Min Mat Min Exi Min Mat Fac Low Low Fac Low Low Dat Pro Fac Upp Upp War Pro Fac Upp Upp Zhi Pro Res Res Acc Com Peak Influence 1712 | 30 367 323 481 206 . 70 251 476 . . 237 . . . . 85 . . . . 78 . . . . 299 183 251 1712 Average Influence 169 | 13 183 77 271 177 . 26 86 235 . . 164 . . . . 46 . . . . 37 . . . . 93 68 65 883 Maximum Alert Level 5 | . 1 1 2 1 . . 1 2 . . 1 . . . . . . . . . . . . . . 1 . 1 5 Low Security (%) 75 | 100 60 84 32 64 . 100 76 44 . . 78 . . . . 100 . . . . 100 . . . . 94 100 91 16 Level 1 16 | . 39 15 32 35 . . 23 51 . . 21 . . . . . . . . . . . . . . 5 . 8 5 Level 2 2 | . . . 34 . . . . 3 . . . . . . . . . . . . . . . . . . . . 9 Level 3 1 | . . . . . . . . . . . . . . . . . . . . . . . . . . . . . 23 Level 4 3 | . . . . . . . . . . . . . . . . . . . . . . . . . . . . . 39 Level 5 . | . . . . . . . . . . . . . . . . . . . . . . . . . . . . . 4 High Security . | . . . . . . . . . . . . . . . . . . . . . . . . . . . . . . Max Security . | . . . . . . . . . . . . . . . . . . . . . . . . . . . . . . Squads Dispatched 34 | . 2 . 1 . . . 4 5 . . 1 . . . . 1 . . . . 1 . . . . 8 4 3 4 Investigation 8 | . 1 . 1 . . . 1 1 . . 1 . . . . 1 . . . . . . . . . 2 . . . Extermination 8 | . . . . . . . . 2 . . . . . . . . . . . . . . . . . 2 . 2 2 Reinforcement 10 | . 1 . . . . . 3 2 . . . . . . . . . . . . 1 . . . . 1 1 . 1 Assault 1 | . . . . . . . . . . . . . . . . . . . . . . . . . . . . . 1 Garrison . | . . . . . . . . . . . . . . . . . . . . . . . . . . . . . . Intercept 7 | . . . . . . . . . . . . . . . . . . . . . . . . . . 3 3 1 . Construction Impeded 2 | . . . . . . . . 1 . . . . . . . . . . . . . . . . . 1 . . . Haulers Reinforced 1 | . . . . . . . . . . . . . . . . . . . . . . . . . . . 1 . . Stealth | -11 -10 -10 -9 -9 -9 -8 -8 -7 -7 -7 -6 -6 -6 -6 -5 -5 -5 -5 -5 -4 -4 -4 -4 -4 -3 -3 -2 -1 -1 --------- Run | Scr Mat Min Mat Min Exi Min Mat Fac Low Low Fac Low Low Dat Pro Fac Upp Upp War Pro Fac Upp Upp Zhi Pro Res Res Acc Com Distress Signals 18 | . 2 . 1 . . . 3 . . . 1 . . . . . . . . . . . . . . 1 5 1 4 Communications Jammed . | . . . . . . . . . . . . . . . . . . . . . . . . . . . . . . Distress Signals . | . . . . . . . . . . . . . . . . . . . . . . . . . . . . . . Times Spotted 446 | . 18 6 25 10 . 4 22 25 4 7 8 . 1 4 20 5 3 6 39 3 6 17 28 . 10 26 10 23 116 Peak Tracking Total 66 | . 4 3 4 9 . 3 4 8 3 3 3 . 1 4 5 2 4 5 16 3 5 9 6 . 5 6 5 7 66 Tactical Retreats 37 | . 1 . 2 1 . 1 . . . . 3 . . . 3 1 . . 3 . . 1 9 . 2 1 . 2 7 Traps | -11 -10 -10 -9 -9 -9 -8 -8 -7 -7 -7 -6 -6 -6 -6 -5 -5 -5 -5 -5 -4 -4 -4 -4 -4 -3 -3 -2 -1 -1 ------- Run | Scr Mat Min Mat Min Exi Min Mat Fac Low Low Fac Low Low Dat Pro Fac Upp Upp War Pro Fac Upp Upp Zhi Pro Res Res Acc Com Traps Triggered 12 | . . . . . . . 2 2 . . 2 . . . . . . . . . . . . . . 1 . . 5 Indirectly . | . . . . . . . . . . . . . . . . . . . . . . . . . . . . . . Trap Hack Attempts . | . . . . . . . . . . . . . . . . . . . . . . . . . . . . . . Triggered . | . . . . . . . . . . . . . . . . . . . . . . . . . . . . . . Disarmed . | . . . . . . . . . . . . . . . . . . . . . . . . . . . . . . Reprogrammed 1 | . . . . . . . . 1 . . . . . . . . . . . . . . . . . . . . . Reused 6 | . . . . . . . . . 1 . 1 . . 1 . . . . . . . . 2 . 1 . . . . Traps Extracted . | . . . . . . . . . . . . . . . . . . . . . . . . . . . . . . Installed 7 | . . . . . . . . . 2 . 1 . . 1 . . . . . . . . 2 . 1 . . . . Triggered 23 | . . . . . . . . . 2 . 1 1 . . . . 2 . 7 5 . 2 2 . 1 . . . . Exploded 2 | . . . . . . 2 . . . . . . . . . . . . . . . . . . . . . . . Machines | -11 -10 -10 -9 -9 -9 -8 -8 -7 -7 -7 -6 -6 -6 -6 -5 -5 -5 -5 -5 -4 -4 -4 -4 -4 -3 -3 -2 -1 -1 ---------- Run | Scr Mat Min Mat Min Exi Min Mat Fac Low Low Fac Low Low Dat Pro Fac Upp Upp War Pro Fac Upp Upp Zhi Pro Res Res Acc Com Machines Disabled 17 | . . 2 7 . . . 2 2 . . 1 . . . . . . . . . . 1 . . . . . . 2 Max in Single Turn 4 | . . 1 4 . . . 2 2 . . 1 . . . . . . . . . . 1 . . . . . . 2 Garrison Access 1 | . . . . . . . . . . . . . . . . 1 . . . . . . . . . . . . . Phase Generator 1 | . . . . . . . . . . . . . . . . . . . . . . . . . . . . . 1 Energy Cycler 1 | . . . . . . . . . . . . . . . . . . . . . . . . . . . . 1 . Machines Sabotaged . | . . . . . . . . . . . . . . . . . . . . . . . . . . . . . . Garrisons Compromised . | . . . . . . . . . . . . . . . . . . . . . . . . . . . . . . Overloaded Fab Kills . | . . . . . . . . . . . . . . . . . . . . . . . . . . . . . . Fab Network Shutdowns . | . . . . . . . . . . . . . . . . . . . . . . . . . . . . . . Hacking | -11 -10 -10 -9 -9 -9 -8 -8 -7 -7 -7 -6 -6 -6 -6 -5 -5 -5 -5 -5 -4 -4 -4 -4 -4 -3 -3 -2 -1 -1 --------- Run | Scr Mat Min Mat Min Exi Min Mat Fac Low Low Fac Low Low Dat Pro Fac Upp Upp War Pro Fac Upp Upp Zhi Pro Res Res Acc Com Machines Accessed 48 | . 8 1 3 . 1 . 3 9 2 . . . 1 . . 5 1 . 1 . . . . 4 . 3 1 1 4 Terminals 32 | . 7 1 3 . . . 3 7 1 . . . 1 . . 2 . . . . . . . . . 2 . 1 4 Fabricators 4 | . . . . . . . . 2 . . . . . . . 1 . . . . . . . . . 1 . . . Repair Stations . | . . . . . . . . . . . . . . . . . . . . . . . . . . . . . . Recycling Units 2 | . 1 . . . . . . . . . . . . . . 1 . . . . . . . . . . . . . Scanalyzers 1 | . . . . . . . . . . . . . . . . . . . . . . . . . . . 1 . . Garrison Access 1 | . . . . . . . . . . . . . . . . 1 . . . . . . . . . . . . . Total Hacks 138 | . 17 5 7 . 1 . 9 44 7 . . . 1 . . 9 1 . 1 . . . . 13 . 10 6 2 5 Successful 73 | . 6 3 5 . 1 . 3 22 2 . . . . . . 7 1 . 1 . . . . 13 . 2 3 2 2 Failed 65 | . 11 2 2 . . . 6 22 5 . . . 1 . . 2 . . . . . . . . . 8 3 . 3 Catastrophic 12 | . . . 1 . . . 5 1 1 . . . 1 . . . . . . . . . . . . 1 1 . 1 Database Lockouts . | . . . . . . . . . . . . . . . . . . . . . . . . . . . . . . Manual 89 | . 15 5 5 . 1 . 9 37 5 . . . 1 . . 4 . . . . . . . . . 5 . 1 1 Terminals 100 | . 16 5 7 . . . 9 39 6 . . . 1 . . 5 . . . . . . . . . 5 . 2 5 Fabricators 12 | . . . . . . . . 5 . . . . . . . 2 . . . . . . . . . 5 . . . Repair Stations . | . . . . . . . . . . . . . . . . . . . . . . . . . . . . . . Recycling Units 2 | . 1 . . . . . . . . . . . . . . 1 . . . . . . . . . . . . . Scanalyzers 6 | . . . . . . . . . . . . . . . . . . . . . . . . . . . 6 . . Garrison Access 1 | . . . . . . . . . . . . . . . . 1 . . . . . . . . . . . . . Terminal Hacks 41 | . 3 3 2 . 1 . 1 9 2 . . . . . . 2 1 . 1 . . . . 13 . . . 1 2 Record 7 | . . . . . . . . . 1 . . . . . . . 1 . . . . . . 5 . . . . . Part Schematic 10 | . . 3 . . . . . 3 . . . . . . . . . . . . . . . 4 . . . . . Robot Analysis 1 | . 1 . . . . . . . . . . . . . . . . . . . . . . . . . . . . Prototype ID Bank 8 | . 1 . 1 . . . . 1 . . . . . . . 1 . . . . . . . 4 . . . . . Open Door 3 | . . . . . . . . . 1 . . . . . . . . . 1 . . . . . . . . 1 . Branch Access Points 3 | . . . 1 . . . . 2 . . . . . . . . . . . . . . . . . . . . . Terminal Index 2 | . . . . . . . . 1 . . . . . . . 1 . . . . . . . . . . . . . Fabricator Index 1 | . . . . . . . . 1 . . . . . . . . . . . . . . . . . . . . . Reprogram Traps 1 | . . . . . . . . 1 . . . . . . . . . . . . . . . . . . . . . Recall Investigation 1 | . 1 . . . . . . . . . . . . . . . . . . . . . . . . . . . . Recall Reinforcements 1 | . . . . . . . 1 . . . . . . . . . . . . . . . . . . . . . . EX-Prototype ID Bank 1 | . . . . . 1 . . . . . . . . . . . . . . . . . . . . . . . . Disengage Seal 2 | . . . . . . . . . . . . . . . . . . . . . . . . . . . . . 2 Fabricator Hacks 7 | . . . . . . . . 4 . . . . . . . 2 . . . . . . . . . 1 . . . Load Schematic 4 | . . . . . . . . 2 . . . . . . . 1 . . . . . . . . . 1 . . . Build 3 | . . . . . . . . 2 . . . . . . . 1 . . . . . . . . . . . . . Repair Station Hacks . | . . . . . . . . . . . . . . . . . . . . . . . . . . . . . . Recycling Unit Hacks . | . . . . . . . . . . . . . . . . . . . . . . . . . . . . . . Scanalyzer 3 | . . . . . . . . . . . . . . . . . . . . . . . . . . . 3 . . Insert Component 1 | . . . . . . . . . . . . . . . . . . . . . . . . . . . 1 . . Analyze 2 | . . . . . . . . . . . . . . . . . . . . . . . . . . . 2 . . Garrison Access Hacks 1 | . . . . . . . . . . . . . . . . 1 . . . . . . . . . . . . . Seal Access 1 | . . . . . . . . . . . . . . . . 1 . . . . . . . . . . . . . Unauthorized Hacks 60 | . 13 . 7 . . . 5 24 . . . . . . . 4 . . . . . . . . . 5 . 2 . Terminals 19 | . 2 . 3 . . . 2 9 . . . . . . . 1 . . . . . . . . . 1 . 1 . Track 6 | . 1 . 3 . . . . 1 . . . . . . . . . . . . . . . . . 1 . . . Assimilate 1 | . 1 . . . . . . . . . . . . . . . . . . . . . . . . . . . . Botnet 10 | . . . . . . . 1 7 . . . . . . . 1 . . . . . . . . . . . 1 . Disrupt 2 | . . . . . . . 1 1 . . . . . . . . . . . . . . . . . . . . . Fabricators . | . . . . . . . . . . . . . . . . . . . . . . . . . . . . . . Repair Stations . | . . . . . . . . . . . . . . . . . . . . . . . . . . . . . . Recycling Units 2 | . 1 . . . . . . . . . . . . . . 1 . . . . . . . . . . . . . Tunnel 2 | . 1 . . . . . . . . . . . . . . 1 . . . . . . . . . . . . . Scanalyzers . | . . . . . . . . . . . . . . . . . . . . . . . . . . . . . . Garrison Access . | . . . . . . . . . . . . . . . . . . . . . . . . . . . . . . Data Cores Recovered 1 | . . . . . . . . 1 . . . . . . . . . . . . . . . . . . . . . Used 1 | . . . . . . . . 1 . . . . . . . . . . . . . . . . . . . . . Hacking Detections 32 | . 7 . 3 . . . 3 9 1 . . . 1 . . 2 . . . . . . . . . 3 1 . 2 Full Trace Events 1 | . . . 1 . . . . . . . . . . . . . . . . . . . . . . . . . . Feedback Events . | . . . . . . . . . . . . . . . . . . . . . . . . . . . . . . Feedback Blocked . | . . . . . . . . . . . . . . . . . . . . . . . . . . . . . . Robot Schematics Acquired . | . . . . . . . . . . . . . . . . . . . . . . . . . . . . . . Robots Built . | . . . . . . . . . . . . . . . . . . . . . . . . . . . . . . Matter . | . . . . . . . . . . . . . . . . . . . . . . . . . . . . . . Time . | . . . . . . . . . . . . . . . . . . . . . . . . . . . . . . Total Robot Build Rating . | . . . . . . . . . . . . . . . . . . . . . . . . . . . . . . Part Schematics Acquired 10 | . . 3 . . . . . 3 . . . . . . . . . . . . . . . 4 . . . . . Parts Built 3 | . . . . . . . . 2 . . . . . . . 1 . . . . . . . . . . . . . Matter 438 | . . . . . . . . 270 . . . . . . . 168 . . . . . . . . . . . . . Time 193 | . . . . . . . . 109 . . . . . . . 84 . . . . . . . . . . . . . Total Part Build Rating 9 | . . . . . . . . 5 . . . . . . . 4 . . . . . . . . . . . . . Parts Repaired . | . . . . . . . . . . . . . . . . . . . . . . . . . . . . . . Time . | . . . . . . . . . . . . . . . . . . . . . . . . . . . . . . Parts Recycled . | . . . . . . . . . . . . . . . . . . . . . . . . . . . . . . Recycled Matter . | . . . . . . . . . . . . . . . . . . . . . . . . . . . . . . Retrieved Matter . | . . . . . . . . . . . . . . . . . . . . . . . . . . . . . . Retrieved Components . | . . . . . . . . . . . . . . . . . . . . . . . . . . . . . . Parts Scanalyzed 1 | . . . . . . . . . . . . . . . . . . . . . . . . . . . 1 . . Part Schematics Acquired . | . . . . . . . . . . . . . . . . . . . . . . . . . . . . . . Parts Damaged . | . . . . . . . . . . . . . . . . . . . . . . . . . . . . . . Bothacking | -11 -10 -10 -9 -9 -9 -8 -8 -7 -7 -7 -6 -6 -6 -6 -5 -5 -5 -5 -5 -4 -4 -4 -4 -4 -3 -3 -2 -1 -1 ------------ Run | Scr Mat Min Mat Min Exi Min Mat Fac Low Low Fac Low Low Dat Pro Fac Upp Upp War Pro Fac Upp Upp Zhi Pro Res Res Acc Com Used RIF Installer . | . . . . . . . . . . . . . . . . . . . . . . . . . . . . . . Robots Hacked . | . . . . . . . . . . . . . . . . . . . . . . . . . . . . . . Non-combat . | . . . . . . . . . . . . . . . . . . . . . . . . . . . . . . Combat . | . . . . . . . . . . . . . . . . . . . . . . . . . . . . . . Robot Hacks Applied . | . . . . . . . . . . . . . . . . . . . . . . . . . . . . . . Relay Couplers Released 8 | . . . . . . . . . . . . . . . . . . . . . . . . . . . 8 . . Programmers 8 | . . . . . . . . . . . . . . . . . . . . . . . . . . . 8 . . Robots Rewired . | . . . . . . . . . . . . . . . . . . . . . . . . . . . . . . Allies Hacked 1 | . . . . . . . . . . . . . . . . . . . . . . . . . . . . . 1 Hacks Repelled 1 | . . . . . . . . . . . . . . . . . . . . . . . . . . . . . 1 Allies | -11 -10 -10 -9 -9 -9 -8 -8 -7 -7 -7 -6 -6 -6 -6 -5 -5 -5 -5 -5 -4 -4 -4 -4 -4 -3 -3 -2 -1 -1 -------- Run | Scr Mat Min Mat Min Exi Min Mat Fac Low Low Fac Low Low Dat Pro Fac Upp Upp War Pro Fac Upp Upp Zhi Pro Res Res Acc Com Total Allies 63 | . 1 2 . . . . . . . . . . . . . . . . . . . . . . . . . . 60 Largest Group 31 | . 1 3 2 . . . . . . . . . . . . . . . . . . . . . . . . . 31 Highest-Rated Group 1430 | . 10 52 21 . . . . . . . . . . . . . . . . . . . . . . . . . 1430 Highest-Rated Ally 90 | . 10 31 11 . . . . . . . . . . . . . . . . . . . . . . . . . 90 Total Orders 7 | . . . 2 . . . . . . . . . . . . . . . 1 3 . . 1 . . . . . . GOTO 4 | . . . 1 . . . . . . . . . . . . . . . 1 1 . . 1 . . . . . . FOLLOW 1 | . . . 1 . . . . . . . . . . . . . . . . . . . . . . . . . . EXPLORE 2 | . . . . . . . . . . . . . . . . . . . . 2 . . . . . . . . . Ally Attacks 299 | . . 6 . . . . . . . . . . . . . . . . . . . . . . . . . . 293 Total Damage 8062 | . . 126 . . . . . . . . . . . . . . . . . . . . . . . . . . 7936 Kills 38 | . . 1 . . . . . . . . . . . . . . . . . . . . . . . . . . 37 Allies Corrupted 5 | . . . . . . . . . . . . . . . . . . . . 2 . . . . . . . . 3 Allies Melted . | . . . . . . . . . . . . . . . . . . . . . . . . . . . . . . Intel | -11 -10 -10 -9 -9 -9 -8 -8 -7 -7 -7 -6 -6 -6 -6 -5 -5 -5 -5 -5 -4 -4 -4 -4 -4 -3 -3 -2 -1 -1 ------- Run | Scr Mat Min Mat Min Exi Min Mat Fac Low Low Fac Low Low Dat Pro Fac Upp Upp War Pro Fac Upp Upp Zhi Pro Res Res Acc Com Robot Analysis Total 116 | . 1 . . . . . . . . . . . . 115 . . . . . . . . . . . . . . . Derelict Logs Recovered 12 | . . 1 . 1 . . . . 2 . . . 1 . 1 . 1 1 . 1 . 2 1 . . . . . . Drone Launches 4 | . . . . . . . . . . . . . . . . . . . 2 . . 2 . . . . . . . Drone Recoveries . | . . . . . . . . . . . . . . . . . . . . . . . . . . . . . . Decoded 0b10 Intel 53 | . . . . . . . . . . . . . . . . . . . . . 3 . . . . 3 21 21 5 Traps 3 | . . . . . . . . . . . . . . . . . . . . . . . . . . . . 2 1 Emergency Access 6 | . . . . . . . . . . . . . . . . . . . . . . . . . . . 3 2 1 Items 31 | . . . . . . . . . . . . . . . . . . . . . . . . . . . 15 13 3 Patrols 7 | . . . . . . . . . . . . . . . . . . . . . 3 . . . . . 1 3 . Guards 6 | . . . . . . . . . . . . . . . . . . . . . . . . . . 3 2 1 . Exploration | -11 -10 -10 -9 -9 -9 -8 -8 -7 -7 -7 -6 -6 -6 -6 -5 -5 -5 -5 -5 -4 -4 -4 -4 -4 -3 -3 -2 -1 -1 ------------- Run | Scr Mat Min Mat Min Exi Min Mat Fac Low Low Fac Low Low Dat Pro Fac Upp Upp War Pro Fac Upp Upp Zhi Pro Res Res Acc Com Turns Passed 23965 | 118 496 2113 486 120 451 640 686 1222 1086 139 425 273 648 360 1895 733 1213 1057 1016 555 264 1681 1338 240 894 1030 1031 873 882 Spaces Moved 13337 | 83 449 638 303 102 455 467 456 784 919 82 335 246 590 201 624 448 669 442 613 328 132 934 707 144 531 444 463 395 353 Core 385 | 13 . 359 . . . . . . . . . . . . . . . . . . 1 . . . . . . . 12 Treads 4003 | . . . . . . . . . . . . . . . . . . . . . 44 934 707 144 531 444 463 395 341 Legs 2635 | . . . . . . . . . . . . . . . 48 448 669 442 613 328 87 . . . . . . . . Wheels 6314 | 70 449 279 303 102 455 467 456 784 919 82 335 246 590 201 576 . . . . . . . . . . . . . . Hover . | . . . . . . . . . . . . . . . . . . . . . . . . . . . . . . Flight . | . . . . . . . . . . . . . . . . . . . . . . . . . . . . . . Fastest Speed 50 | 50 80 90 80 93 95 96 96 110 110 110 110 110 110 110 110 150 150 150 145 143 143 160 160 160 160 160 158 161 50 Average Speed 141 | 75 88 320 91 93 95 96 106 110 110 110 110 110 110 115 116 150 150 150 148 144 165 160 160 160 160 171 170 164 154 Slowest Speed 2200 | 80 90 500 120 95 96 96 140 115 110 110 110 110 110 120 200 150 150 150 150 145 2200 160 180 160 160 190 185 166 1150 Overloaded Moves . | . . . . . . . . . . . . . . . . . . . . . . . . . . . . . . Propulsion Burnouts . | . . . . . . . . . . . . . . . . . . . . . . . . . . . . . . Robots Hopped . | . . . . . . . . . . . . . . . . . . . . . . . . . . . . . . Cave-ins Triggered 1 | . . . . . . . 1 . . . . . . . . . . . . . . . . . . . . . . Exploration Rate (%) 49 | 4 78 99 35 32 70 82 42 19 85 13 13 49 70 77 67 14 75 50 72 72 5 97 75 60 68 11 15 11 19 Regions Visited 29 Branch Regions 19 Pre-discovered Areas 34 | . 1 . . . . . . . 1 . . . . 26 1 1 . . . . . 1 . 3 . . . . . Known Exits Taken 23 | . . . 1 1 . . . 1 1 1 1 1 1 1 1 1 1 1 1 1 1 1 1 1 1 1 1 1 . Unknown Exits Taken 6 | 1 1 1 . . 1 1 1 . . . . . . . . . . . . . . . . . . . . . . Scrap Searched 24 | . . 2 . . . 1 . . 3 1 . 2 2 . 1 . 2 1 . 1 . 3 2 . 3 . . . . Spaces Dug 87 | . . . . . . . . 7 . . . . . . 14 10 4 3 13 . 3 6 . . . 4 5 10 8 Terrain Destroyed 647 | . 49 55 71 . . . 54 84 . . 5 . . . 24 10 4 26 17 5 5 41 44 . 23 16 12 15 87 Melee 65 | . . . . . . . . 7 . . . . . . 14 10 4 3 . . . . . . . 4 5 10 8 Projectile 146 | . . . . . . . . . . . . . . . 4 . . 11 17 5 5 41 35 . 3 12 7 5 1 AOE 436 | . 49 55 71 . . . 54 77 . . 5 . . . 6 . . 12 . . . . 9 . 20 . . . 78 Actions | -11 -10 -10 -9 -9 -9 -8 -8 -7 -7 -7 -6 -6 -6 -6 -5 -5 -5 -5 -5 -4 -4 -4 -4 -4 -3 -3 -2 -1 -1 --------- Run | Scr Mat Min Mat Min Exi Min Mat Fac Low Low Fac Low Low Dat Pro Fac Upp Upp War Pro Fac Upp Upp Zhi Pro Res Res Acc Com Total 17254 | 118 499 679 413 115 469 640 608 1059 970 102 382 248 589 268 1730 491 862 797 677 397 165 1038 838 157 565 607 616 552 603 Wait 2463 | 4 8 11 12 1 . 156 97 174 19 1 23 . . 4 1036 13 182 317 17 54 4 35 57 . 20 63 46 80 29 Move 13308 | 82 448 637 302 101 454 466 455 783 918 81 334 245 589 200 623 447 668 441 612 327 131 933 706 143 530 443 462 394 353 Hop . | . . . . . . . . . . . . . . . . . . . . . . . . . . . . . . Pick Up 274 | 14 7 1 17 1 6 4 16 24 6 2 9 1 . 12 10 10 1 4 14 3 8 8 16 6 2 16 30 7 19 Fast Attach . | . . . . . . . . . . . . . . . . . . . . . . . . . . . . . . Attach 175 | 7 . . 7 2 2 . 9 11 3 2 3 . . 15 9 2 1 10 . 1 5 10 7 2 2 10 15 10 30 Detach 8 | . . . . . . . . 1 . . . . . . 1 . . . . . 1 1 2 . 1 . . . 1 Swap 79 | . 2 2 7 . 3 . 1 8 3 . 1 1 . 2 5 3 . 3 5 4 . 3 3 1 . 4 8 4 6 Drop 130 | 1 1 3 4 . 4 4 6 9 6 2 6 1 . 2 4 3 . . 7 3 9 1 10 5 3 11 8 2 15 Fire 689 | 10 32 25 64 10 . 10 24 36 13 14 5 . . 15 25 . 4 14 21 5 7 46 35 . 6 54 42 42 130 Melee 104 | . . . . . . . . 12 . . . . . 17 17 12 6 8 . . . . . . . 4 5 12 11 Ram 2 | . 1 . . . . . . 1 . . . . . . . . . . . . . . . . . . . . . Kick 1 | . . . . . . . . . . . . . . . . 1 . . . . . . . . . . . . . Crush 4 | . . . . . . . . . . . . . . . . . . . . . . . . . . 2 . 1 1 Escape Stasis 8 | . . . . . . . . . . . . . . . . . . . . . . . . . . . . . 8 Rewire . | . . . . . . . . . . . . . . . . . . . . . . . . . . . . . . Trap 7 | . . . . . . . . . 2 . 1 . . 1 . . . . . . . . 2 . 1 . . . . Miscellaneous 2 | . . . . . . . . . . . . . . . . . . . 1 . . 1 . . . . . . . Route ------- -11/Scrapyard -10/Materials (discovered 4 exits: *Mat x3 / *Min) -10/Mines (discovered 2 exits: *Mat x2) -9/Materials (discovered 4 exits: *Min x2 / *Sto x2) -9/Mines -9/Exiles -8/Mines -8/Materials -7/Factory (discovered 2 exits: *Low x2) -7/Lower Caves -7/Lower Caves -6/Factory -6/Lower Caves -6/Lower Caves -6/Data Miner -5/Proximity Caves -5/Factory (discovered 2 exits: *Fac / *Upp) -5/Upper Caves -5/Upper Caves (discovered 2 exits: *Fac / *War) -5/Warlord -4/Proximity Caves -4/Factory (discovered 2 exits: *Upp x2) -4/Upper Caves -4/Upper Caves (discovered 2 exits: *Res / *Zhi) -4/Zhirov -3/Proximity Caves -3/Research -2/Research -1/Access -1/Command (discovered 1 exit: *Sur) History --------- Turn | Location | Event 40 | -11/Scrapyard | Discovered new exit (range 15) 119 | -11/Scrapyard | Entered Materials 220 | -10/Materials | Discovered new exit (range 9) 304 | -10/Materials | Build established: Mutant 312 | -10/Materials | Discovered new exit (range 15) 342 | -10/Materials | Discovered new exit (range 14) 383 | -10/Materials | Discovered new exit (range 3) 615 | -10/Materials | Entered Mines 615 | -10/Mines | Accompanied by 1 ally 909 | -10/Mines | Received a Rocket Launcher from a helpful Derelict 1835 | -10/Mines | Discovered new exit (range 15) 2443 | -10/Mines | Discovered new exit (range 5) 2728 | -10/Mines | Entered Materials 2728 | -9/Materials | Accompanied by 2 allies 2728 | -9/Materials | Evolved 2 slots: Propulsion x1, Utility x1 2729 | -9/Materials | Identified exit to Storage 2918 | -9/Materials | Lost 3 parts (1p1n1w) 2954 | -9/Materials | Destroyed 10 combat bots 3043 | -9/Materials | Core integrity fell below 50% 3069 | -9/Materials | Identified exit to Mines 3214 | -9/Materials | Entered Mines 3291 | -9/Mines | Identified exit to Exiles 3312 | -9/Mines | Assembled infested the area 3330 | -9/Mines | Deemed a non-threat by the Exiles lab entrance 3334 | -9/Mines | Entered Exiles 3366 | -9/Exiles | Met 8R-AWN 3382 | -9/Exiles | Met EX-HEX 3439 | -9/Exiles | Met EX-BIN 3453 | -9/Exiles | Aligned with FarCom system 3454 | -9/Exiles | Given EX-Vault access code 3478 | -9/Exiles | Opened EX-Vault 3507 | -9/Exiles | Warned to stay clear of 0b10 Research branches 3556 | -9/Exiles | Met EX-DEC 3693 | -9/Exiles | Found XL Autogun Array 3775 | -9/Exiles | Discovered new exit (range 12) 3785 | -9/Exiles | Left Exiles lab with XL Autogun Array 3785 | -9/Exiles | Entered Mines 4390 | -8/Mines | Discovered new exit (range 7) 4425 | -8/Mines | Entered Materials 4425 | -8/Materials | Evolved 2 slots: Utility x1, Weapon x1 4924 | -8/Materials | Build established: Skirmisher 4939 | -8/Materials | Lost 6 parts (1p1n1u3w) 4965 | -8/Materials | Crushed by falling debris 5104 | -8/Materials | Discovered new exit (range 7) 5111 | -8/Materials | Entered Factory 5111 | -7/Factory | Evolved 2 slots: Propulsion x1, Utility x1 5228 | -7/Factory | Identified exit to Lower Caves 5284 | -7/Factory | Build established: Hauler-Skirmisher 5693 | -7/Factory | Lost 3 parts (1p2w) 5758 | -7/Factory | Destroyed 9 combat bots 5767 | -7/Factory | Lost 5 parts (2n3w) 5921 | -7/Factory | Build established: Hauler-Mutant 6109 | -7/Factory | Fabricated Lrn. Sensor Array (x1) 6232 | -7/Factory | Fabricated Hcp. Storage Unit? 6333 | -7/Factory | Entered Lower Caves 6388 | -7/Lower Caves | Nuclear Core stolen by Master Thief 6408 | -7/Lower Caves | Learned location of Zion (-7) 6421 | -7/Lower Caves | Learned Factory stockpile data 6867 | -7/Lower Caves | Encountered a Warlord checkpoint 7284 | -7/Lower Caves | Discovered new exit (range 11) 7418 | -7/Lower Caves | Identified exit to Lower Caves 7419 | -7/Lower Caves | Entered another Lower Caves area 7532 | -7/Lower Caves | Discovered new exit (range 7) 7538 | -7/Lower Caves | Identified exit to Factory 7549 | -7/Lower Caves | Attacked by a delusional Derelict stockpiling parts 7558 | -7/Lower Caves | Entered Factory 7558 | -6/Factory | Evolved 2 slots: Utility x1, Weapon x1 7816 | -6/Factory | Build established: Hauler-Skirmisher 7866 | -6/Factory | Discovered new exit (range 8) 7885 | -6/Factory | Identified exit to Lower Caves 7983 | -6/Factory | Entered Lower Caves 8249 | -6/Lower Caves | Discovered new exit (range 5) 8255 | -6/Lower Caves | Identified exit to Lower Caves 8256 | -6/Lower Caves | Entered another Lower Caves area 8259 | -6/Lower Caves | Identified exit to Data Miner 8757 | -6/Lower Caves | Encountered a Warlord checkpoint 8904 | -6/Lower Caves | Entered Data Miner 8904 | -6/Data Miner | Discovered new exit (range 6) 8925 | -6/Data Miner | Met Data Miner 8989 | -6/Data Miner | Interfaced with the Data Conduit 9096 | -6/Data Miner | Lost 14 parts (1p2n4u7w) 9189 | -6/Data Miner | Found Exp. Thermal Shield 9263 | -6/Data Miner | Identified exit to Proximity Caves 9264 | -6/Data Miner | Entered Proximity Caves 9295 | -5/Proximity Caves | Build established: Hauler-Mutant 11094 | -5/Proximity Caves | Lost 4 parts (3n1w) 11112 | -5/Proximity Caves | Destroyed 7 combat bots 11124 | -5/Proximity Caves | Discovered new exit (range 15) 11144 | -5/Proximity Caves | Identified exit to Factory 11159 | -5/Proximity Caves | Entered Factory 11159 | -5/Factory | Evolved 2 slots: Utility x2 11160 | -5/Factory | Loaded intel: 280 machine locations 11304 | -5/Factory | Fabricated Lrn. Sensor Array? 11466 | -5/Factory | Build established: Scavenger-Assassin 11561 | -5/Factory | Discovered new exit (range 19) 11616 | -5/Factory | Identified exit to Factory 11734 | -5/Factory | Discovered new exit (range 15) 11795 | -5/Factory | Identified exit to Upper Caves 11892 | -5/Factory | Entered Upper Caves 11922 | -5/Upper Caves | Lost 3 parts (1n2w) 12582 | -5/Upper Caves | Discovered new exit (range 20) 12728 | -5/Upper Caves | Learned 8 Factory zone layouts 13104 | -5/Upper Caves | Identified exit to Upper Caves 13105 | -5/Upper Caves | Entered another Upper Caves area 13126 | -5/Upper Caves | Discovered exit to Factory (range 8) 13787 | -5/Upper Caves | Lost 7 parts (1p1n2u3w) 13953 | -5/Upper Caves | Learned location of 1 exit from Factory 14150 | -5/Upper Caves | Discovered new exit (range 8) 14161 | -5/Upper Caves | Identified exit to Warlord 14162 | -5/Upper Caves | Entered Warlord 14212 | -5/Warlord | System corruption cleaned by Quarantine Array 14254 | -5/Warlord | Build established: Scavenger-Skirmisher 14653 | -5/Warlord | Warlord's base attacked by MAIN.C 14691 | -5/Warlord | Build established: Scavenger-Mutant 14719 | -5/Warlord | Found Prototype Energy Cannon 14722 | -5/Warlord | Found Prototype Energy Cannon 14868 | -5/Warlord | Identified Vortex Driver (x2) 14884 | -5/Warlord | Found Vortex Chain Reactor 14888 | -5/Warlord | Found Exp. Phase Shifter 14908 | -5/Warlord | Found Exp. Target Analyzer 14910 | -5/Warlord | Met Warlord 14911 | -5/Warlord | Found Exp. Focal Shield 15003 | -5/Warlord | Warlord forces counterattacked 15030 | -5/Warlord | P-70 Sage assimilated allied F5-MEG(g) 15041 | -5/Warlord | P-70 Sage assimilated allied 6E-XBP(M) 15159 | -5/Warlord | Discovered new exit (range 15) 15177 | -5/Warlord | Identified exit to Proximity Caves 15178 | -5/Warlord | Entered Proximity Caves 15178 | -4/Proximity Caves | Accompanied by 2 allies 15360 | -4/Proximity Caves | Build established: Scavenger-Skirmisher 15733 | -4/Proximity Caves | Entered Factory 15733 | -4/Factory | Evolved 2 slots: Utility x2 15734 | -4/Factory | Identified exit to Upper Caves 15736 | -4/Factory | Loaded intel: 260 machine locations 15997 | -4/Factory | Entered Upper Caves 15999 | -4/Upper Caves | Attracted the attention of an 0b10 checkpoint 16089 | -4/Upper Caves | Attracted the attention of an 0b10 outpost 16140 | -4/Upper Caves | Lost 3 parts (1p2w) 16143 | -4/Upper Caves | Destroyed 10 combat bots 16278 | -4/Upper Caves | Learned location of 1 exit from Research 16332 | -4/Upper Caves | Build established: Hauler-Mutant 17047 | -4/Upper Caves | Build established: Hauler-Skirmisher 17436 | -4/Upper Caves | Discovered new exit (range 9) 17450 | -4/Upper Caves | Identified exit to Upper Caves 17503 | -4/Upper Caves | Build established: Hauler-Mutant 17678 | -4/Upper Caves | Entered another Upper Caves area 17678 | -4/Upper Caves | Accompanied by 2 allies 17797 | -4/Upper Caves | Attracted the attention of an 0b10 checkpoint 17929 | -4/Upper Caves | Discovered new exit (range 9) 17942 | -4/Upper Caves | Identified exit to Research 18530 | -4/Upper Caves | Build established: Hauler-Skirmisher 18905 | -4/Upper Caves | Learned Research security intel 19002 | -4/Upper Caves | Discovered new exit (range 5) 19008 | -4/Upper Caves | Identified exit to Zhirov 19016 | -4/Upper Caves | Entered Zhirov 19016 | -4/Zhirov | Discovered new exit (range 3) 19045 | -4/Zhirov | Met Zhirov 19052 | -4/Zhirov | Build established: Hauler-Mutant 19090 | -4/Zhirov | Zhirov requested help retrieving the SGEMP Prototype 19133 | -4/Zhirov | Found Alien Artifact 19134 | -4/Zhirov | Identified Integrated Dissipator 19134 | -4/Zhirov | Installed Integrated Dissipator, increased core heat dissipation (+2%) 19255 | -4/Zhirov | Identified exit to Proximity Caves 19256 | -4/Zhirov | Entered Proximity Caves 19464 | -3/Proximity Caves | Build established: Derelict-Mutant 19802 | -3/Proximity Caves | Discovered exit to Research (range 5) 19818 | -3/Proximity Caves | Build established: Derelict-Skirmisher 20150 | -3/Proximity Caves | Entered Research 20150 | -3/Research | Evolved 2 slots: Power x1, Utility x1 20151 | -3/Research | Identified exit to Research 20153 | -3/Research | Loaded intel: 116 machine locations 20244 | -3/Research | Found Exp. Thermal Shield 20489 | -3/Research | Build established: Derelict-Mutant 20646 | -3/Research | Intercept squad dispatched 20653 | -3/Research | Spotted Tracker 20653 | -3/Research | Spotted Tracker 20665 | -3/Research | Destroyed Tracker 20682 | -3/Research | Spotted Combat Programmer 20705 | -3/Research | Destroyed Combat Programmer 20727 | -3/Research | Spotted Combat Programmer 20752 | -3/Research | Destroyed Combat Programmer 21180 | -3/Research | Entered another Research area 21180 | -2/Research | Warlord forces began assault on 0b10 21180 | -2/Research | Evolved 2 slots: Propulsion x1, Utility x1 21181 | -2/Research | Loaded intel: 87 machine locations 21290 | -2/Research | Research machine network offline 21495 | -2/Research | Borebot progress halted 21532 | -2/Research | Borebot progress halted 21630 | -2/Research | Build established: Hauler-Tank 21691 | -2/Research | Spotted Tracker 21692 | -2/Research | Spotted Tracker 21693 | -2/Research | Borebot progress halted 21708 | -2/Research | Spotted Combat Programmer 21709 | -2/Research | Destroyed Tracker 21729 | -2/Research | Borebot progress halted 21782 | -2/Research | Destroyed Combat Programmer 21788 | -2/Research | Destroyed Tracker 21789 | -2/Research | Borebot progress halted 21808 | -2/Research | Lost 11 parts (2p1n2u6w) 21842 | -2/Research | Found Exp. Targeting Computer 21846 | -2/Research | Found Exp. Targeting Computer 22202 | -2/Research | Discovered new exit (range 3) 22206 | -2/Research | Identified exit to Access 22211 | -2/Research | Entered Access 22211 | -1/Access | Evolved 2 slots: Propulsion x1, Utility x1 22212 | -1/Access | Loaded intel: 108 machine locations 22496 | -1/Access | Build established: Hauler-Mutant 22599 | -1/Access | Spotted B-99 Colossus 22634 | -1/Access | Destroyed B-99 Colossus 22661 | -1/Access | Lost 3 parts (1u2w) 22740 | -1/Access | Intercept squad dispatched 22749 | -1/Access | Energy Cycler disabled 22912 | -1/Access | Lost 3 parts (1n2w) 23070 | -1/Access | Discovered new exit (range 8) 23080 | -1/Access | Identified exit to Command 23084 | -1/Access | Entered Command 23085 | -1/Command | Loaded intel: 65 machine locations 23127 | -1/Command | Disengaged cave seal 23207 | -1/Command | Disengaged cave seal 23277 | -1/Command | Phase Generator disabled 23404 | -1/Command | Spotted B-99 Colossus 23423 | -1/Command | Destroyed B-99 Colossus 23518 | -1/Command | Spotted Alpha 7 23519 | -1/Command | Spotted Striker 23521 | -1/Command | Spotted Alpha 7 23521 | -1/Command | Spotted Executioner 23521 | -1/Command | Spotted Striker 23522 | -1/Command | Spotted Executioner 23522 | -1/Command | Spotted Executioner 23523 | -1/Command | Spotted Executioner 23525 | -1/Command | Destroyed Executioner 23530 | -1/Command | Destroyed Executioner 23530 | -1/Command | Allies destroyed Executioner 23536 | -1/Command | Allies destroyed Striker 23537 | -1/Command | Destroyed Striker 23546 | -1/Command | Spotted B-99 Colossus 23556 | -1/Command | Destroyed Alpha 7 23565 | -1/Command | Destroyed B-99 Colossus 23567 | -1/Command | Destroyed Executioner 23569 | -1/Command | Destroyed Alpha 7 23584 | -1/Command | First assault squad dispatched 23587 | -1/Command | Spotted B-99 Colossus 23590 | -1/Command | Destroyed 7 combat bots 23596 | -1/Command | Destroyed B-99 Colossus 23610 | -1/Command | Lost 9 parts (2p1n3u3w) 23631 | -1/Command | Discovered new exit (range 8) 23640 | -1/Command | Identified exit to Surface 23671 | -1/Command | Found Prototype Ballistic Gun 23672 | -1/Command | Identified Multirail 23683 | -1/Command | Found Exp. Targeting Computer 23885 | -1/Command | Destroyed 19 combat bots 23908 | -1/Command | Lost 12 parts (2p3n2u5w) 23941 | -1/Command | Core integrity fell below 50% 23948 | -1/Command | Destroyed 23 combat bots 23962 | -1/Command | Core integrity fell below 20% 23966 | -1/Command | Destroyed by S-43 Plague with Heavy Machine Gun Last Messages --------------- 23949_ Slug penetrates Wall. 23950_ Exp. Targeting Computer destroyed. 23951_ Slug penetrates Wall. 23951_ Penetrated by Slug. 23951_ Hcp. Storage Unit destroyed. 23954_ Slug penetrates Wall. 23954_ Penetrated by Slug. 23954_ Critical hit. 23954_ Phasing Sabre destroyed. 23954_ Penetrated by Slug. 23954_ Exp. Targeting Computer destroyed. 23954_ Slug penetrates Wall. 23957_ Penetrated by Slug. 23957_ Slug penetrates Wall. 23960_ Dropped Lrg. Storage Unit. 23960_ Penetrated by Slug. 23960_ Slug penetrates Wall. 23960_ Dropped Lrg. Storage Unit. 23961_ Penetrated by Slug. 23965_ K-01 Serf collects debris. Map ----- +----------------------------------------------------+ | ?????????????????????????????????????????????????? | | ?????????????????????????????????????????????????? | | ?????????????????????????????????????????????????? | | ???????????????????????????????????????????????#!# | | ????????????????????????????????????????????? !!%| | | ????????????????????????????????????????????? | | ????????????????????????????????????????????? | | ???????????????????????????????????????????? "" | | ?????????????????????hh???ss????????????????""" | | ?????????????????????hhh# s??????????#??? "T | | ?????????????????????hh?? ??????????# "" | | ???????????????????????h?s s ??????????# "" | | ?????????????????????h??? ???????????# "" | | ??????????????????????hh? ss???????????# | | ?????????????????????????# #???????????# | | ?????????????????????????# #???????????# | | ?????????????????????????# #???????????# | | ????????????????????#????# #?????#####?# | | ????????????????????# ???# #?????# #?# | | ????????????????????# ???# %#?????# #?# ##"" "" | | ???????????????#????# ??#=[#?????# [ #?# ##""T"" | | ??????????? ### ### ###%!########%#### ## """? | | ??????????? *%%*%=%%[==%=!%[ #??##?# | | ?????????? !!==!%!=!%g!!%/h[* #?????# | | ?????????? =[%[%=%=%!=h[h!=% #?????# | | ?????????? =@%*==%!*=%=!*=![ #?##### | | ??????????????## ##; ###%=########%#### #?? # | | ???????????????????##????#!%#?????#!!!#?# #?### " | | ?????????????????????????# !#?????#%!!#?# #?? " | | ?????????????????????????# #?????#!%=#?# #??#### | | ?????????????????????????# #?????####### ####""" | | ?????????????????????????# #??????????# | | ?????????????????????????# #??????????# #### | | ??????????????????????g??# g#??????????# #" | | ?????????????????????????! g ??????????# "# | | ??????????????????????g??%g g?????????#"" ## | | ?????????????????????????!g ?????????### ## | | ??????????????????????g?? gg???????????# + | | ???????????????????????g? gg ???????????# ## | | ????????????????????????? g ???????????# ## | | ????????????????????????????????????????# ## | | ????????????????????????????????????????# ##?? | | ????????????????????????????????????????# #??? | | ????????????????????????????????????????# #??? | | ????????????????????????????????????????# ####??? | | ????????????????????????????????????????#+#??????? | | ?????????????????????????????????????????????????? | | ?????????????????????????????????????????????????? | | ?????????????????????????????????????????????????? | | ?????????????????????????????????????????????????? | +----------------------------------------------------+ Best States ------------- Heat Dissipation 100 Energy Generation 55 Energy Capacity 1190 Matter Stores 300 Matter Capacity 300 Sight Range 16 Robot Scan Range 22 Terrain Scan Range 20 Terrain Scan Density 210 Armor Coverage 1200 Resistance: KI 30 Resistance: TH 30 Resistance: EM 25 Utility Shielding 66 Weapon Shielding 90 Phase Shifting 20 Evasion (%) 60 Targeting Accuracy 36 Melee Accuracy 8 Target Analysis 12 Recoil Reduction 6 Matter Filtering 30 Offensive Hacking 10 Defensive Hacking 24 Item Schematics ----------------- Hcp. Storage Unit | -10/Mines | Hacked Lrg. Storage Unit | -10/Mines | Hacked Wheel | -10/Mines | Hacked Hacking Suite | -7/Factory | Hacked Lrn. Sensor Array | -7/Factory | Hacked Lrn. Terrain Scanner | -7/Factory | Hacked Assault Drone Bay | -4/Zhirov | Free Exp. Heat Sink | -4/Zhirov | Free Exp. Optical Array | -4/Zhirov | Free Imp. Arc Thrower | -4/Zhirov | Free Robot Schematics ------------------ None Fabricated ------------ Lrn. Sensor Array | x1 | -7/Factory Hcp. Storage Unit | x1 | -7/Factory Lrn. Sensor Array | x1 | -5/Factory Alien Tech Used ----------------- Integrated Dissipator Achievements -------------- Killing Spree Preemptive Strike Challenges ------------ None Game ------ Seed SwarmBottomlessTorch Manual? 0 Play Time 03:03:13 Cumulative 248.3 hours Start 2019.12.14 @ 19:28:42 End 2019.12.14 @ 23:30:32 Sessions 1 Manual Loads 0 Difficulty Rogue Special Mode None Game No. 311 Rogue 311 Adventurer 0 Explorer 0 Win Type - Total 2 Types 1/0/0/1/0/0/0 Lore% 59 Gallery% 81 Achievement% 57 Wizard Run 0 Options --------- ASCII 0 Keyboard 0 Movement Numpad Keybinds 0 Fullscreen 1 Font 16/Terminus Map View 75x55 Tactical HUD 1 Map Filters NONE Filters NONE Steam 1 RUN: 28f5ae11-00e3-430b-b542-cbb5006c644e